bitfinex-derivatives/quotes_BTCF0:USTF0_20250903
["timestamp","ask_amount","ask_price","bid_price","bid_amount"]
[1756858036940,0.58289055,111450.0,111440.0,0.41752]
[1756858037243,0.48056757,111450.0,111440.0,0.41752]
[1756858037535,0.43202757,111450.0,111440.0,0.41752]
[1756858038042,0.45610757,111450.0,111440.0,0.41752]
[1756858038235,0.48066757,111450.0,111440.0,0.41752]
[1756858038433,0.51561757,111450.0,111440.0,0.41752]
[1756858040146,0.48066757,111450.0,111440.0,0.41752]
[1756858041144,0.51561757,111450.0,111440.0,0.41752]
[1756858043648,0.45610757,111450.0,111440.0,0.41752]
[1756858044249,0.48066757,111450.0,111440.0,0.41752]
[1756858044551,0.27066757,111450.0,111440.0,0.41752]
[1756858045048,0.30561757,111450.0,111440.0,0.41752]
[1756858046753,0.2223599,111450.0,111440.0,0.41752]
[1756858047655,0.1737199,111450.0,111440.0,0.41752]
[1756858047855,0.22202757,111450.0,111440.0,0.41752]
[1756858048052,0.0237199,111450.0,111440.0,0.41752]
[1756858050453,0.0237199,111450.0,111440.0,0.43833266]
[1756858055358,0.0237199,111450.0,111440.0,1.26049266]
[1756858057364,0.0237199,111450.0,111440.0,0.43833266]
[1756858057660,0.0237199,111450.0,111440.0,1.26045266]
[1756858058461,0.0237199,111450.0,111440.0,0.43833266]
[1756858058759,0.0237199,111450.0,111440.0,1.26045266]
[1756858061766,0.001,111450.0,111440.0,1.26045266]
[1756858066569,0.001,111450.0,111440.0,0.43833266]
[1756858067060,0.001,111450.0,111440.0,1.26033266]
[1756858069471,0.02369146,111450.0,111440.0,1.26033266]
[1756858074574,0.02369146,111450.0,111440.0,1.01033266]
[1756858074779,0.001,111450.0,111440.0,1.26033266]
[1756858076383,0.001,111450.0,111440.0,1.61385806]
[1756858076582,0.001,111450.0,111440.0,1.62385806]
[1756858078579,0.001,111450.0,111440.0,1.99385806]
[1756858079183,0.001,111450.0,111440.0,1.74385806]
[1756858082484,0.001,111450.0,111440.0,0.92185806]
[1756858082680,0.001,111450.0,111440.0,1.74369806]
[1756858085477,0.001,111450.0,111440.0,1.81727806]
[1756858085988,0.001,111450.0,111440.0,3.55531806]
[1756858086186,0.001,111450.0,111440.0,2.73347806]
[1756858086384,0.001,111450.0,111440.0,3.55523806]
[1756858088288,0.001,111450.0,111440.0,2.73347806]
[1756858088493,0.001,111450.0,111440.0,3.55523806]
[1756858088695,0.001,111450.0,111440.0,2.73347806]
[1756858088888,0.001,111450.0,111440.0,3.55523806]
[1756858089993,0.001,111450.0,111440.0,3.55519806]
[1756858090289,0.001,111450.0,111440.0,2.64375266]
[1756858090492,0.03775,111450.0,111440.0,2.44375266]
[1756858090694,0.001,111450.0,111440.0,3.26547266]
[1756858098601,0.001,111450.0,111440.0,3.35519926]
[1756858106411,0.001,111450.0,111440.0,3.17519926]
[1756858106616,0.001,111450.0,111440.0,3.49519926]
[1756858110416,0.0001,111460.0,111450.0,0.1896992]
[1756858110620,0.08441,111470.0,111460.0,0.08503]
[1756858110821,0.10702737,111470.0,111460.0,0.90663]
[1756858111018,0.35702737,111470.0,111460.0,0.9963412]
[1756858111418,0.35702737,111470.0,111460.0,1.00536827]
[1756858112320,0.36102737,111470.0,111460.0,0.91565707]
[1756858112822,0.36102737,111470.0,111460.0,0.99872707]
[1756858113819,0.36302737,111470.0,111460.0,0.99872707]
[1756858115827,0.36302737,111470.0,111460.0,0.99864707]
[1756858126034,0.36302737,111470.0,111460.0,0.17712707]
[1756858126233,0.36302737,111470.0,111460.0,0.99856707]
[1756858127733,0.34031,111470.0,111460.0,0.99856707]
[1756858128328,0.09031,111470.0,111460.0,1.16183827]
[1756858128535,0.05356,111470.0,111460.0,1.16183827]
[1756858128934,0.08824,111470.0,111460.0,1.16183827]
[1756858132030,0.05356,111470.0,111460.0,1.16183827]
[1756858132535,0.05356,111470.0,111460.0,1.07212707]
[1756858132836,0.0764776,111470.0,111460.0,1.07212707]
[1756858133437,0.0764776,111470.0,111460.0,1.33592707]
[1756858134737,0.0001,111480.0,111470.0,0.1744831]
[1756858134946,0.08017,111490.0,111480.0,0.08478]
[1756858135146,0.08007,111490.0,111480.0,0.9061]
[1756858136041,0.08007,111490.0,111480.0,0.08478]
[1756858136341,0.08407,111490.0,111480.0,0.9061]
[1756858136843,0.08407,111490.0,111480.0,0.98916]
[1756858137240,0.08607,111490.0,111480.0,0.98916]
[1756858140042,0.08607,111490.0,111480.0,0.16784]
[1756858140246,0.08607,111490.0,111480.0,0.98908]
[1756858141943,0.08607,111490.0,111480.0,0.16784]
[1756858142351,0.08607,111490.0,111480.0,0.79648]
[1756858146649,0.10893521,111490.0,111480.0,0.79648]
[1756858148452,0.02886521,111490.0,111480.0,0.79648]
[1756858149142,0.05313521,111490.0,111480.0,0.79648]
[1756858150450,0.02886521,111490.0,111480.0,0.79648]
[1756858151546,0.02886521,111490.0,111480.0,1.15715943]
[1756858151747,0.006,111490.0,111480.0,1.16715943]
[1756858152853,0.005,111490.0,111480.0,1.16715943]
[1756858153053,0.001,111490.0,111480.0,1.16715943]
[1756858156851,0.0001,111500.0,111490.0,0.0832]
[1756858157059,0.0001,111510.0,111500.0,0.09809]
[1756858157254,0.05899518,111520.0,111500.0,0.91909]
[1756858157449,0.47674518,111520.0,111510.0,0.0832]
[1756858157657,0.44059518,111520.0,111510.0,0.0832]
[1756858157858,0.44059518,111520.0,111510.0,0.08768]
[1756858158156,0.47664518,111520.0,111510.0,0.08768]
[1756858158456,0.47664518,111520.0,111510.0,0.90868]
[1756858159353,0.47764518,111520.0,111510.0,0.90868]
[1756858161058,0.47964518,111520.0,111510.0,0.90868]
[1756858161357,0.27964518,111520.0,111510.0,0.90868]
[1756858164061,0.10964518,111520.0,111510.0,0.90868]
[1756858164561,0.07359518,111520.0,111510.0,0.90868]
[1756858165359,0.10964518,111520.0,111510.0,0.90868]
[1756858166360,0.10964518,111520.0,111510.0,0.08768]
[1756858166556,0.35964518,111520.0,111510.0,0.05182]
[1756858166757,0.35964518,111520.0,111510.0,0.65534]
[1756858167066,0.35964518,111520.0,111510.0,0.02851]
[1756858167566,0.35964518,111520.0,111510.0,0.05182]
[1756858170564,0.35964518,111520.0,111510.0,0.02851]
[1756858171866,0.72964518,111520.0,111510.0,0.00448]
[1756858173065,0.72964518,111520.0,111510.0,0.07801]
[1756858179573,0.72964518,111520.0,111510.0,0.03258]
[1756858179767,0.8239444,111520.0,111510.0,0.03258]
[1756858180266,1.69453355,111520.0,111510.0,0.03258]
[1756858180672,1.64622588,111520.0,111510.0,0.03258]
[1756858182073,0.87387489,111520.0,111510.0,0.03258]
[1756858185975,0.87387489,111520.0,111510.0,0.05516]
[1756858186376,0.87387489,111520.0,111510.0,0.03258]
[1756858190376,0.62387489,111520.0,111510.0,0.03258]
[1756858190581,1.30184666,111520.0,111510.0,0.11195]
[1756858190786,0.48120666,111520.0,111510.0,0.11195]
[1756858190982,0.47964518,111520.0,111510.0,0.36195]
[1756858191189,0.28964518,111520.0,111510.0,0.36195]
[1756858192984,0.23011518,111520.0,111510.0,0.36195]
[1756858193292,0.02584518,111520.0,111510.0,0.36195]
[1756858197891,0.07005085,111530.0,111510.0,0.36195]
[1756858198200,0.09432085,111530.0,111520.0,0.07937]
[1756858198391,0.09422085,111530.0,111520.0,0.07937]
[1756858198690,0.11831085,111530.0,111520.0,0.07937]
[1756858199287,0.11931085,111530.0,111520.0,0.07937]
[1756858199892,0.14616085,111530.0,111520.0,0.07937]
[1756858200392,0.07195085,111530.0,111520.0,0.07937]
[1756858200591,0.002,111530.0,111520.0,0.84289]
[1756858200994,0.002,111530.0,111520.0,1.09289]
[1756858201692,0.05036,111530.0,111520.0,0.32937]
[1756858201898,0.07621,111530.0,111520.0,0.54357]
[1756858204799,0.07621,111530.0,111520.0,0.07937]
[1756858209202,0.38621,111530.0,111520.0,0.07937]
[1756858209603,0.19621,111530.0,111520.0,0.07937]
[1756858209902,0.21894117,111530.0,111520.0,0.07937]
[1756858210703,0.09894117,111530.0,111520.0,0.07937]
[1756858216909,0.07452,111520.0,111510.0,0.11975]
[1756858217204,0.09725117,111520.0,111510.0,0.08717]
[1756858218109,0.09825117,111520.0,111510.0,0.08717]
[1756858221010,0.02373117,111520.0,111510.0,0.08717]
[1756858221212,0.02373117,111520.0,111510.0,0.33717]
[1756858223112,0.02373117,111520.0,111510.0,0.34612648]
[1756858227315,0.02373117,111520.0,111510.0,0.34164648]
[1756858228517,0.02373117,111520.0,111510.0,0.34612648]
[1756858229212,0.02373117,111520.0,111510.0,0.43579748]
[1756858234523,0.02371071,111520.0,111510.0,0.43579748]
[1756858236221,0.02371071,111520.0,111510.0,0.18579748]
[1756858236521,0.0001,111530.0,111520.0,0.1723529]
[1756858236721,0.02,111530.0,111520.0,0.9924729]
[1756858237510,0.03,111530.0,111520.0,0.90281]
[1756858237716,0.031,111530.0,111520.0,0.90281]
[1756858237910,0.001,111530.0,111520.0,0.90281]
[1756858239120,0.09692012,111540.0,111520.0,0.90281]
[1756858239322,0.50610012,111540.0,111530.0,0.08463]
[1756858239625,0.50600012,111540.0,111530.0,0.08463]
[1756858240525,0.40918,111540.0,111530.0,0.08463]
[1756858241726,0.44524,111540.0,111530.0,0.08463]
[1756858242319,0.40918,111540.0,111530.0,0.08463]
[1756858243115,0.36,111540.0,111530.0,0.08463]
[1756858243321,0.08572,111550.0,111540.0,0.08437]
[1756858243525,0.39562,111550.0,111540.0,0.90441]
[1756858244625,0.46559416,111550.0,111540.0,0.90441]
[1756858244826,0.46759416,111550.0,111540.0,0.90441]
[1756858247429,0.39762,111550.0,111540.0,0.90441]
[1756858248325,0.42019425,111550.0,111540.0,0.90441]
[1756858249129,0.38413425,111550.0,111540.0,0.90441]
[1756858249330,0.02457425,111550.0,111540.0,0.9940568]
[1756858249530,0.04954425,111550.0,111540.0,0.90441]
[1756858249828,0.02697,111550.0,111540.0,0.90441]
[1756858250329,0.002,111550.0,111540.0,1.15441]
[1756858250522,0.002,111550.0,111540.0,1.17521294]
[1756858251224,0.03616,111560.0,111540.0,1.13854294]
[1756858251429,0.41828056,111560.0,111550.0,0.09833]
[1756858251629,0.41818056,111560.0,111550.0,0.09833]
[1756858252531,0.42018056,111560.0,111550.0,0.09833]
[1756858252828,0.33456056,111560.0,111550.0,0.09833]
[1756858253029,0.33697,111560.0,111550.0,0.1073864]
[1756858253728,0.36156,111560.0,111550.0,0.10281]
[1756858254125,0.39762,111560.0,111550.0,0.10281]
[1756858254327,0.39762,111560.0,111550.0,0.92265]
[1756858255530,0.05156,111560.0,111550.0,0.92265]
[1756858255730,0.15762,111560.0,111550.0,0.92265]
[1756858256125,0.08762,111560.0,111550.0,0.08885]
[1756858256332,0.08762,111560.0,111550.0,0.55837]
[1756858258233,0.08762,111560.0,111550.0,0.08885]
[1756858258433,0.08762,111560.0,111550.0,0.90865]
[1756858258634,0.08762,111560.0,111550.0,0.08885]
[1756858258830,0.08762,111560.0,111550.0,0.90861]
[1756858259633,0.08762,111560.0,111550.0,0.92257]
[1756858260028,0.05156,111560.0,111550.0,0.92257]
[1756858260225,0.02697,111560.0,111550.0,0.92257]
[1756858260424,0.05156,111560.0,111550.0,0.92257]
[1756858260830,0.002,111560.0,111550.0,0.92257]
[1756858261027,0.002,111560.0,111550.0,1.0122088]
[1756858261336,0.002,111560.0,111550.0,0.1924488]
[1756858261537,0.002,111560.0,111550.0,0.92253]
[1756858261842,0.03116,111570.0,111550.0,0.92253]
[1756858262036,0.4832123,111570.0,111560.0,0.08437]
[1756858262848,0.4832123,111570.0,111560.0,0.10548171]
[1756858263053,0.1032123,111570.0,111560.0,0.10548171]
[1756858263855,0.08072,111570.0,111560.0,0.10548171]
[1756858264547,0.08072,111570.0,111560.0,0.10648171]
[1756858264851,0.04956,111570.0,111560.0,0.10648171]
[1756858265151,0.08562,111570.0,111560.0,0.10648171]
[1756858267251,0.10811613,111570.0,111560.0,0.10648171]
[1756858269257,0.10811613,111570.0,111560.0,0.92604171]
[1756858269454,0.10811613,111570.0,111560.0,1.00904171]
[1756858269958,0.04746613,111570.0,111560.0,1.00904171]
[1756858271156,0.08369613,111570.0,111560.0,1.00904171]
[1756858271658,0.04746613,111570.0,111560.0,1.00904171]
[1756858272159,0.08369613,111570.0,111560.0,1.00904171]
[1756858275561,0.08369613,111570.0,111560.0,1.01352171]
[1756858276754,0.04746613,111570.0,111560.0,1.01352171]
[1756858277757,0.02249613,111570.0,111560.0,1.01352171]
[1756858279453,0.02249613,111570.0,111560.0,0.19396171]
[1756858279655,0.02249613,111570.0,111560.0,1.01392171]
[1756858280658,0.02249613,111570.0,111560.0,1.36735251]
[1756858280855,0.08459901,111590.0,111560.0,1.33068251]
[1756858280856,0.0001,111580.0,111560.0,1.33068251]
[1756858281158,0.02264988,111580.0,111570.0,0.08024]
[1756858281457,0.02254988,111580.0,111570.0,0.08024]
[1756858283363,0.02254988,111580.0,111570.0,0.15139184]
[1756858283957,0.02254988,111580.0,111570.0,0.24101464]
[1756858287855,0.02254988,111580.0,111570.0,1.06041464]
[1756858289464,0.02254988,111580.0,111570.0,1.14340464]
[1756858293163,0.0001,111590.0,111580.0,0.08024]
[1756858293463,0.04545379,111590.0,111580.0,0.08024]
[1756858293666,0.06944379,111590.0,111580.0,0.08024]
[1756858294059,0.10567379,111590.0,111580.0,0.92015363]
[1756858294461,0.08314,111590.0,111580.0,0.92015363]
[1756858295667,0.10567099,111590.0,111580.0,0.92115363]
[1756858296468,0.10567099,111590.0,111580.0,0.92563363]
[1756858297257,0.06944099,111590.0,111580.0,0.92563363]
[1756858297464,0.02253099,111590.0,111580.0,1.01524843]
[1756858297859,0.02253099,111590.0,111580.0,0.92563363]
[1756858298565,0.02253099,111590.0,111580.0,1.01524843]
[1756858300368,0.02253099,111590.0,111580.0,1.02437365]
[1756858300965,0.0001,111600.0,111590.0,0.1717467]
[1756858301170,0.03477,111610.0,111600.0,0.03533]
[1756858301469,0.1054072,111610.0,111600.0,0.92236288]
[1756858301875,0.1054072,111610.0,111600.0,0.99583288]
[1756858304059,0.1054072,111610.0,111600.0,1.00992288]
[1756858305870,0.1054072,111610.0,111600.0,0.19064288]
[1756858306071,0.1054072,111610.0,111600.0,1.00992288]
[1756858306768,0.3554072,111610.0,111600.0,0.12018]
[1756858306962,0.3554072,111610.0,111600.0,0.02881]
[1756858307160,0.86386796,111610.0,111600.0,0.02881]
[1756858307765,0.81549895,111610.0,111600.0,0.02881]
[1756858312374,0.86386796,111610.0,111600.0,0.0052806]
[1756858312674,0.87993764,111610.0,111600.0,0.0052806]
[1756858312874,0.87993764,111610.0,111590.0,0.0001]
[1756858313068,0.04831112,111600.0,111590.0,0.0001]
[1756858313269,0.44083832,111600.0,111580.0,0.05129]
[1756858313468,0.53961795,111600.0,111580.0,0.08662]
[1756858314470,0.53961795,111600.0,111580.0,0.05129]
[1756858314664,0.53961795,111600.0,111590.0,0.03533]
[1756858314872,0.53951795,111600.0,111590.0,0.08304]
[1756858315470,0.53951795,111600.0,111590.0,0.08204]
[1756858316076,0.44083832,111600.0,111590.0,0.08204]
[1756858316374,0.44083832,111600.0,111590.0,0.08304]
[1756858316576,0.3925272,111600.0,111590.0,0.08304]
[1756858319874,0.3925272,111600.0,111590.0,0.04771]
[1756858320478,0.74255117,111600.0,111590.0,0.001]
[1756858322473,0.79086229,111600.0,111590.0,0.001]
[1756858322979,0.80698986,111600.0,111590.0,0.001]
[1756858323180,0.74255117,111600.0,111590.0,0.001]
[1756858323380,0.80689903,111600.0,111590.0,0.001]
[1756858324778,0.9225129,111600.0,111590.0,0.001]
[1756858325276,0.85816504,111600.0,111590.0,0.001]
[1756858325674,1.0714129,111600.0,111580.0,0.07358]
[1756858325979,0.86840823,111590.0,111580.0,0.07358]
[1756858326180,1.24093543,111590.0,111570.0,0.08309]
[1756858326479,0.04820823,111580.0,111570.0,0.08309]
[1756858326675,0.40073543,111580.0,111570.0,0.06294866]
[1756858326884,0.51320681,111580.0,111540.0,0.04671]
[1756858327076,0.86870302,111570.0,111540.0,0.04671]
[1756858327273,0.04820302,111560.0,111540.0,0.04671]
[1756858327578,0.82036,111550.0,111540.0,0.04671]
[1756858327778,0.3325272,111550.0,111540.0,0.04671]
[1756858327978,1.25353315,111550.0,111540.0,0.04671]
[1756858329075,1.25353315,111550.0,111530.0,0.08092]
[1756858329272,1.25363315,111550.0,111530.0,0.15444]
[1756858329474,1.25363315,111550.0,111530.0,0.11911]
[1756858329784,0.48151617,111550.0,111540.0,0.001]
[1756858329985,1.05070737,111550.0,111540.0,0.001]
[1756858330576,1.30070737,111550.0,111540.0,0.002]
[1756858332076,1.56098737,111550.0,111530.0,0.11901]
[1756858332281,1.31108737,111550.0,111530.0,0.11901]
[1756858333382,1.31108737,111550.0,111530.0,0.12001]
[1756858334787,0.8212,111540.0,111530.0,0.09745]
[1756858335088,1.32576684,111540.0,111530.0,0.09735]
[1756858335382,0.50456684,111540.0,111530.0,0.09735]
[1756858335583,1.3971212,111540.0,111530.0,0.11991]
[1756858336283,1.44532422,111540.0,111530.0,0.11991]
[1756858336484,0.62408422,111540.0,111530.0,0.11991]
[1756858336672,1.44540422,111540.0,111530.0,0.11991]
[1756858337370,1.44540422,111540.0,111530.0,0.15528]
[1756858337879,1.59430422,111540.0,111530.0,0.15528]
[1756858338085,1.44540422,111540.0,111530.0,0.15528]
[1756858338883,0.62408422,111540.0,111530.0,0.15528]
[1756858339084,1.44496422,111540.0,111530.0,0.15528]
[1756858339283,1.44504422,111540.0,111530.0,0.15528]
[1756858339988,0.62408422,111540.0,111530.0,0.15528]
[1756858340184,1.44508422,111540.0,111530.0,0.15528]
[1756858342390,1.44508422,111540.0,111530.0,0.11991]
[1756858342592,1.44508422,111540.0,111530.0,0.15528]
[1756858342988,1.44508422,111540.0,111530.0,0.11991]
[1756858343595,1.44508422,111540.0,111530.0,0.15528]
[1756858344293,0.62408422,111540.0,111530.0,0.15528]
[1756858344692,1.44516422,111540.0,111530.0,0.15528]
[1756858344891,0.62408422,111540.0,111530.0,0.15528]
[1756858345093,0.47384156,111540.0,111530.0,0.40528]
[1756858348394,0.52204458,111540.0,111530.0,0.40528]
[1756858350490,0.47384156,111540.0,111530.0,0.40528]
[1756858350790,0.4025272,111540.0,111530.0,0.40528]
[1756858350997,0.07073022,111540.0,111530.0,0.40528]
[1756858351293,0.0225272,111540.0,111530.0,0.40528]
[1756858351496,0.04820302,111540.0,111530.0,0.40528]
[1756858352193,0.07083022,111550.0,111530.0,0.36991]
[1756858352394,0.07083022,111550.0,111530.0,0.37001]
[1756858352785,0.07083022,111550.0,111540.0,0.03537]
[1756858352991,0.07073022,111550.0,111540.0,0.08076]
[1756858353391,0.04820302,111550.0,111540.0,0.33076]
[1756858354497,0.04820302,111550.0,111540.0,0.33376]
[1756858354886,0.11968349,111560.0,111550.0,0.09523]
[1756858355090,0.28212411,111560.0,111550.0,0.09523]
[1756858356593,0.28212411,111560.0,111550.0,0.09623]
[1756858357294,0.28212411,111560.0,111550.0,0.09923]
[1756858360096,0.21074364,111560.0,111550.0,0.09923]
[1756858360304,0.02254062,111560.0,111550.0,0.09923]
[1756858361692,0.02254062,111560.0,111550.0,0.34923]
[1756858368413,0.02254062,111560.0,111550.0,0.10229]
[1756858369203,0.27254062,111560.0,111550.0,0.10229]
[1756858369511,0.27254062,111560.0,111550.0,0.004]
[1756858369697,0.58254062,111560.0,111550.0,0.004]
[1756858369898,0.67750316,111560.0,111550.0,0.004]
[1756858370103,1.55814618,111560.0,111550.0,0.004]
[1756858371207,1.55814618,111560.0,111550.0,0.003]
[1756858372113,1.55814618,111560.0,111540.0,0.07361]
[1756858372314,1.55824618,111560.0,111540.0,0.07361]
[1756858372619,1.55824618,111560.0,111540.0,0.18154]
[1756858374514,1.55824618,111560.0,111540.0,0.20666]
[1756858374717,0.04820302,111550.0,111540.0,0.20666]
[1756858375013,0.42820302,111550.0,111540.0,0.20656]
[1756858375212,0.45074364,111550.0,111540.0,0.20656]
[1756858375402,0.45074364,111550.0,111540.0,0.24134]
[1756858376213,0.45074364,111550.0,111540.0,0.20656]
[1756858376514,0.45074364,111550.0,111540.0,0.24134]
[1756858377015,0.45074364,111550.0,111540.0,0.24034]
[1756858377210,0.45074364,111550.0,111540.0,0.24134]
[1756858377709,0.5468143,111550.0,111540.0,0.20656]
[1756858378619,0.5468143,111550.0,111540.0,0.24134]
[1756858379220,0.49861128,111550.0,111540.0,0.24134]
[1756858380528,0.5468143,111550.0,111540.0,0.24134]
[1756858381326,0.49861128,111550.0,111540.0,0.24134]
[1756858381627,0.49861128,111550.0,111540.0,0.15752]
[1756858381628,0.7968143,111550.0,111540.0,0.15752]
[1756858381825,0.74861128,111550.0,111540.0,0.15752]
[1756858382021,0.81295914,111550.0,111540.0,0.08401]
[1756858382421,1.64395914,111550.0,111540.0,0.08401]
[1756858382728,1.79285914,111550.0,111540.0,0.08401]
[1756858384928,1.72851128,111550.0,111540.0,0.08401]
[1756858385531,1.77674694,111550.0,111540.0,0.08401]
[1756858388733,1.72851128,111550.0,111540.0,0.08401]
[1756858389031,0.89751128,111550.0,111540.0,0.13124]
[1756858389225,1.72747128,111550.0,111540.0,0.13124]
[1756858390626,0.49861128,111550.0,111540.0,0.13124]
[1756858390828,0.54682666,111550.0,111540.0,0.41729]
[1756858391126,0.40254062,111550.0,111540.0,0.41729]
[1756858391333,0.02254062,111550.0,111540.0,0.41729]
[1756858391631,0.15254062,111550.0,111540.0,0.41729]
[1756858396134,0.02254062,111550.0,111540.0,0.41729]
[1756858401534,0.02254062,111550.0,111540.0,0.4908]
[1756858406239,0.0001,111560.0,111550.0,0.09692]
[1756858406445,0.07319477,111570.0,111560.0,0.0824]
[1756858406631,0.07309477,111570.0,111560.0,0.0824]
[1756858406827,0.0001,111580.0,111570.0,0.0824]
[1756858407039,0.45225512,111580.0,111570.0,0.02311]
[1756858407239,0.48421101,111580.0,111570.0,0.04635]
[1756858407629,0.73421101,111580.0,111570.0,0.04635]
[1756858407830,0.7434066,111580.0,111570.0,0.04635]
[1756858408240,0.7434066,111580.0,111570.0,0.12934]
[1756858409041,0.7434066,111580.0,111570.0,0.16539]
[1756858409443,0.7434066,111580.0,111570.0,0.12934]
[1756858409631,0.7444066,111580.0,111570.0,0.16539]
[1756858411439,0.7434066,111580.0,111570.0,0.16539]
[1756858412245,0.81569182,111580.0,111570.0,0.16539]
[1756858412746,0.81569182,111580.0,111570.0,0.16639]
[1756858413545,0.81569182,111580.0,111570.0,0.13034]
[1756858413938,0.81569182,111580.0,111570.0,0.08399]
[1756858414446,0.81569182,111580.0,111570.0,0.1071]
[1756858414845,0.81569182,111580.0,111570.0,0.13034]
[1756858415046,0.81569182,111580.0,111570.0,0.16639]
[1756858418249,0.83811245,111580.0,111570.0,0.16639]
[1756858421152,0.58811245,111580.0,111570.0,0.16639]
[1756858421350,0.48430144,111580.0,111570.0,0.16639]
[1756858424251,0.53251682,111580.0,111570.0,0.16639]
[1756858424553,0.48430144,111580.0,111570.0,0.16639]
[1756858424752,0.48430144,111580.0,111570.0,0.23988]
[1756858427359,0.53251682,111580.0,111570.0,0.23988]
[1756858430054,0.53251682,111580.0,111570.0,0.24436]
[1756858430854,0.48430144,111580.0,111570.0,0.24436]
[1756858434362,0.53251682,111580.0,111570.0,0.24436]
[1756858438365,0.0001,111590.0,111570.0,1.33689695]
[1756858438571,0.0001,111590.0,111580.0,1.08812]
[1756858438770,0.09893,111600.0,111580.0,1.08812]
[1756858438966,0.09893,111600.0,111580.0,0.83822]
[1756858439169,0.09893,111600.0,111580.0,0.089716]
[1756858439370,0.02472,111600.0,111590.0,0.0896082]
[1756858439571,0.08449,111610.0,111590.0,0.0896082]
[1756858439764,0.08449,111610.0,111590.0,0.3397082]
[1756858439765,0.04794,111610.0,111590.0,0.3397082]
[1756858440164,0.04794,111610.0,111590.0,0.34876109]
[1756858440365,0.04794,111610.0,111590.0,0.3397082]
[1756858440665,0.04794,111610.0,111590.0,1.1779082]
[1756858441571,0.02472,111610.0,111590.0,1.1779082]
[1756858441872,0.02472,111610.0,111600.0,0.83784]
[1756858442066,0.02462,111610.0,111600.0,0.83784]
[1756858443170,0.04577479,111620.0,111600.0,1.08784]
[1756858443470,0.21361479,111620.0,111600.0,0.83794]
[1756858443676,0.21361479,111620.0,111600.0,0.83894]
[1756858444270,0.21361479,111620.0,111600.0,0.85961884]
[1756858444468,0.09361479,111620.0,111600.0,0.85961884]
[1756858446581,0.09361479,111620.0,111600.0,0.93095936]
[1756858449379,0.09361479,111620.0,111600.0,1.01392936]
[1756858450286,0.11568574,111620.0,111600.0,1.01392936]
[1756858452376,0.11568574,111620.0,111600.0,0.17652936]
[1756858452574,0.11568574,111620.0,111610.0,0.83552]
[1756858452786,0.11558574,111620.0,111610.0,0.83552]
[1756858453183,0.11558574,111620.0,111610.0,0.83999]
[1756858453386,0.11558574,111620.0,111610.0,0.00447]
[1756858453886,0.11558574,111620.0,111610.0,0.70035]
[1756858455088,0.11558574,111620.0,111610.0,0.00447]
[1756858455289,0.11558574,111620.0,111610.0,0.83931]
[1756858455789,0.11558574,111620.0,111610.0,0.00447]
[1756858455990,0.11558574,111620.0,111610.0,0.83919]
[1756858457691,0.07903574,111620.0,111610.0,0.83919]
[1756858458092,0.02207095,111620.0,111610.0,0.83919]
[1756858458893,0.06951095,111620.0,111610.0,0.83867]
[1756858459094,0.02207095,111620.0,111610.0,0.9282622]
[1756858459288,0.08232,111630.0,111610.0,0.25447]
[1756858459486,0.10439226,111630.0,111620.0,0.83396]
[1756858459690,0.10429226,111630.0,111620.0,0.83396]
[1756858460195,0.06951226,111630.0,111620.0,0.83384]
[1756858460390,0.10429226,111630.0,111620.0,0.83384]
[1756858460884,0.10429226,111630.0,111620.0,0.83472]
[1756858462298,0.10429226,111630.0,111620.0,0.001]
[1756858462501,0.10429226,111630.0,111620.0,0.83476]
[1756858462692,0.10429226,111630.0,111620.0,0.83448]
[1756858465000,0.10429226,111630.0,111620.0,0.83895]
[1756858466000,0.10429226,111630.0,111620.0,0.00547]
[1756858466204,0.10429226,111630.0,111620.0,0.83843]
[1756858468205,0.10429226,111630.0,111620.0,0.00547]
[1756858468409,0.10429226,111630.0,111620.0,0.83807]
[1756858471809,0.10429226,111630.0,111620.0,0.83735]
[1756858472506,0.10429226,111630.0,111620.0,0.00547]
[1756858472507,0.35429226,111630.0,111620.0,0.00547]
[1756858474211,0.40239507,111630.0,111620.0,0.00547]
[1756858474398,0.35429226,111630.0,111620.0,0.00547]
[1756858475604,0.10429226,111630.0,111620.0,0.00547]
[1756858480311,0.10419664,111630.0,111620.0,0.00547]
[1756858480717,0.15229945,111630.0,111620.0,0.00547]
[1756858481515,0.10419664,111630.0,111620.0,0.00547]
[1756858481717,0.15229945,111630.0,111620.0,0.00547]
[1756858482416,0.10419664,111630.0,111620.0,0.00547]
[1756858482620,0.15229945,111630.0,111620.0,0.00547]
[1756858483008,0.10419664,111630.0,111620.0,0.00547]
[1756858483209,0.15229945,111630.0,111620.0,0.00547]
[1756858483414,0.10419664,111630.0,111620.0,0.00547]
[1756858483718,0.15229945,111630.0,111620.0,0.00547]
[1756858485217,0.10419664,111630.0,111620.0,0.00547]
[1756858490522,0.03406,111620.0,111610.0,0.09459095]
[1756858490721,0.10381664,111620.0,111610.0,0.09449095]
[1756858491620,0.10381664,111620.0,111610.0,0.09549095]
[1756858491818,0.10381664,111620.0,111610.0,0.07646]
[1756858495023,0.10381664,111620.0,111610.0,0.08522]
[1756858496323,0.10381664,111620.0,111610.0,0.09945]
[1756858501734,0.10381664,111620.0,111610.0,0.08522]
[1756858501931,0.10381664,111620.0,111610.0,0.09398]
[1756858502530,0.10381664,111620.0,111610.0,0.09945]
[1756858508433,0.10381664,111620.0,111610.0,0.08522]
[1756858508832,0.10381664,111620.0,111610.0,0.09398]
[1756858509135,0.10381664,111620.0,111610.0,0.09945]
[1756858510437,0.10381664,111620.0,111610.0,0.08522]
[1756858510939,0.10381664,111620.0,111610.0,0.09398]
[1756858511740,0.10381664,111620.0,111610.0,0.09945]
[1756858512743,0.10381664,111620.0,111610.0,0.07646]
[1756858514141,0.10381664,111620.0,111610.0,0.09945]
[1756858516937,0.10381664,111620.0,111610.0,0.09398]
[1756858517142,0.10381664,111620.0,111610.0,0.07646]
[1756858517941,0.10381664,111620.0,111610.0,0.08522]
[1756858518342,0.10381664,111620.0,111610.0,0.09398]
[1756858518546,0.10381664,111620.0,111610.0,0.07646]
[1756858518748,0.10381664,111620.0,111610.0,0.08522]
[1756858519745,0.10381664,111620.0,111610.0,0.07646]
[1756858520139,0.46381664,111620.0,111610.0,0.07646]
[1756858520336,0.12381664,111620.0,111610.0,0.07646]